[Event "Titled Tuesday Blitz April 25 Early 2023"]
[White "Spata, German"]
[Black "KorolDimitriy75"]
[WhiteFideId "113026"]
[WhiteElo "2238"]
[BlackElo "2433"]
[Result "1-0"]
[Round "10"]
[TimeControl "180+2"]
[Date "2023.04.25"]
[WhiteClock "0:00:35"]
[BlackClock "0:00:01"]

1. Nf3 {[%clk 0:02:58]}  c5 {[%clk 0:02:59]} 2. g3 {[%clk 0:02:58]}  g6 {[%clk 0:03:00]} 3. Bg2 {[%clk 0:02:59]}  Bg7 {[%clk 0:03:01]} 4. O-O {[%clk 0:03:00]}  Nc6 {[%clk 0:03:01]} 5. d3 {[%clk 0:03:00]}  e5 {[%clk 0:03:00]} 6. c4 {[%clk 0:03:00]}  Nge7 {[%clk 0:03:00]} 7. Nc3 {[%clk 0:03:00]}  O-O {[%clk 0:03:00]} 8. Ne1 {[%clk 0:03:00]}  d6 {[%clk 0:02:55]} 9. Nc2 {[%clk 0:03:00]}  f5 {[%clk 0:02:54]} 10. Bg5 {[%clk 0:03:00]}  Be6 {[%clk 0:02:51]} 11. Ne3 {[%clk 0:02:58]}  Qd7 {[%clk 0:02:48]} 12. Rb1 {[%clk 0:02:55]}  Rae8 {[%clk 0:02:38]} 13. Bxe7 {[%clk 0:02:55]}  Rxe7 {[%clk 0:02:38]} 14. Ned5 {[%clk 0:02:54]}  Ref7 {[%clk 0:02:37]} 15. b4 {[%clk 0:02:53]}  b6 {[%clk 0:02:34]} 16. bxc5 {[%clk 0:02:47]}  dxc5 {[%clk 0:02:33]} 17. Qa4 {[%clk 0:02:47]}  Rc8 {[%clk 0:01:41]} 18. Qb5 {[%clk 0:02:26]}  h6 {[%clk 0:01:34]} 19. a4 {[%clk 0:02:26]}  Kh7 {[%clk 0:01:33]} 20. Rfd1 {[%clk 0:02:11]}  Qd8 {[%clk 0:01:08]} 21. e3 {[%clk 0:01:54]}  Na5 {[%clk 0:01:07]} 22. Qb2 {[%clk 0:01:40]}  Qf8 {[%clk 0:00:51]} 23. Qe2 {[%clk 0:01:37]}  h5 {[%clk 0:00:26]} 24. Kh1 {[%clk 0:01:31]}  Qd8 {[%clk 0:00:23]} 25. h4 {[%clk 0:01:24]}  Qf8 {[%clk 0:00:21]} 26. Kg1 {[%clk 0:01:19]}  Rd8 {[%clk 0:00:19]} 27. Nb5 {[%clk 0:01:14]}  Rc8 {[%clk 0:00:18]} 28. Nbc3 {[%clk 0:01:11]}  Rd8 {[%clk 0:00:18]} 29. Bh3 {[%clk 0:01:10]}  Qe8 {[%clk 0:00:14]} 30. Kh2 {[%clk 0:01:05]}  Qd7 {[%clk 0:00:14]} 31. Rg1 {[%clk 0:01:01]}  Re8 {[%clk 0:00:13]} 32. e4 {[%clk 0:01:00]}  f4 {[%clk 0:00:12]} 33. Bxe6 {[%clk 0:01:00]}  Qxe6 {[%clk 0:00:11]} 34. Qf3 {[%clk 0:00:55]}  Nc6 {[%clk 0:00:08]} 35. Ne2 {[%clk 0:00:53]}  Bh6 {[%clk 0:00:06]} 36. g4 {[%clk 0:00:53]}  hxg4 {[%clk 0:00:06]} 37. Rxg4 {[%clk 0:00:53]}  Rg8 {[%clk 0:00:05]} 38. Rbg1 {[%clk 0:00:52]}  Rfg7 {[%clk 0:00:05]} 39. Qh3 {[%clk 0:00:45]}  Kh8 {[%clk 0:00:03]} 40. f3 {[%clk 0:00:44]}  Rh7 {[%clk 0:00:01]} 41. R4g2 {[%clk 0:00:37]}  Bf8 {[%clk 0:00:01]} 42. Qxe6 {[%clk 0:00:35]} 1-0


[Site "https://www.chess.com"]

[Event "Titled Tuesday Blitz April 25 Early 2023"]
[White "Kielinkei"]
[Black "Ibadov, Dashgyn"]
[BlackFideId "24107514"]
[WhiteElo "2421"]
[BlackElo "2208"]
[Result "0-1"]
[Round "10"]
[TimeControl "180+2"]
[Date "2023.04.25"]
[WhiteClock "0:00:04"]
[BlackClock "0:00:11"]

1. e4 {[%clk 0:02:49]}  c5 {[%clk 0:03:00]} 2. a3 {[%clk 0:02:49]}  e5 {[%clk 0:02:45]} 3. Nc3 {[%clk 0:02:47]}  Nf6 {[%clk 0:02:45]} 4. Nf3 {[%clk 0:02:45]}  Nc6 {[%clk 0:02:41]} 5. Bb5 {[%clk 0:02:39]}  Bd6 {[%clk 0:02:36]} 6. d3 {[%clk 0:02:36]}  O-O {[%clk 0:02:30]} 7. O-O {[%clk 0:02:36]}  Nd4 {[%clk 0:02:22]} 8. Bc4 {[%clk 0:02:32]}  h6 {[%clk 0:02:15]} 9. h3 {[%clk 0:02:28]}  Be7 {[%clk 0:02:11]} 10. Nxd4 {[%clk 0:02:24]}  cxd4 {[%clk 0:01:57]} 11. Nd5 {[%clk 0:02:25]}  d6 {[%clk 0:01:48]} 12. f4 {[%clk 0:02:09]}  Nxd5 {[%clk 0:01:43]} 13. Bxd5 {[%clk 0:02:08]}  Be6 {[%clk 0:01:25]} 14. Bxb7 {[%clk 0:01:49]}  Rb8 {[%clk 0:01:23]} 15. Bd5 {[%clk 0:01:50]}  Bxd5 {[%clk 0:01:19]} 16. exd5 {[%clk 0:01:51]}  Qa5 {[%clk 0:01:03]} 17. fxe5 {[%clk 0:01:39]}  dxe5 {[%clk 0:00:50]} 18. Qg4 {[%clk 0:01:39]}  Rb6 {[%clk 0:00:41]} 19. Qd7 {[%clk 0:01:25]}  Bd6 {[%clk 0:00:40]} 20. Rf5 {[%clk 0:00:44]}  Qxd5 {[%clk 0:00:35]} 21. Bf4 {[%clk 0:00:33]}  Rb7 {[%clk 0:00:24]} 22. Rxe5 {[%clk 0:00:30]}  Qxe5 {[%clk 0:00:22]} 23. Qxd6 {[%clk 0:00:28]}  Qxd6 {[%clk 0:00:20]} 24. Bxd6 {[%clk 0:00:29]}  Rd8 {[%clk 0:00:14]} 25. Bb4 {[%clk 0:00:28]}  Rc8 {[%clk 0:00:13]} 26. c4 {[%clk 0:00:25]}  a5 {[%clk 0:00:08]} 27. Bxa5 {[%clk 0:00:23]}  Rxb2 {[%clk 0:00:09]} 28. Bb4 {[%clk 0:00:17]}  Re8 {[%clk 0:00:08]} 29. Re1 {[%clk 0:00:17]}  Rxe1+ {[%clk 0:00:07]} 30. Bxe1 {[%clk 0:00:17]}  Rb3 {[%clk 0:00:08]} 31. c5 {[%clk 0:00:16]}  Rxd3 {[%clk 0:00:06]} 32. Kf2 {[%clk 0:00:15]}  Rxa3 {[%clk 0:00:06]} 33. Ke2 {[%clk 0:00:13]}  f6 {[%clk 0:00:05]} 34. Bf2 {[%clk 0:00:13]}  Ra4 {[%clk 0:00:03]} 35. Kd3 {[%clk 0:00:14]}  Kf7 {[%clk 0:00:04]} 36. Bxd4 {[%clk 0:00:14]}  Ke6 {[%clk 0:00:04]} 37. Be3 {[%clk 0:00:14]}  Kd5 {[%clk 0:00:04]} 38. Ke2 {[%clk 0:00:13]}  Ra2+ {[%clk 0:00:03]} 39. Kf3 {[%clk 0:00:13]}  Ra3 {[%clk 0:00:04]} 40. Kf2 {[%clk 0:00:12]}  f5 {[%clk 0:00:04]} 41. g3 {[%clk 0:00:11]}  g5 {[%clk 0:00:05]} 42. h4 {[%clk 0:00:04]}  gxh4 {[%clk 0:00:06]} 43. gxh4 {[%clk 0:00:05]}  h5 {[%clk 0:00:06]} 44. Kf3 {[%clk 0:00:05]}  Rb3 {[%clk 0:00:06]} 45. Kf4 {[%clk 0:00:05]}  Ke6 {[%clk 0:00:05]} 46. Kf3 {[%clk 0:00:03]}  Ke5 {[%clk 0:00:05]} 47. Ke2 {[%clk 0:00:02]}  Ke4 {[%clk 0:00:05]} 48. Bd2 {[%clk 0:00:01]}  Rb5 {[%clk 0:00:04]} 49. Be3 {[%clk 0:00:01]}  Rb2+ {[%clk 0:00:04]} 50. Bd2 {[%clk 0:00:01]}  Rc2 {[%clk 0:00:05]} 51. Kd1 {[%clk 0:00:01]}  Rxc5 {[%clk 0:00:05]} 52. Bg5 {[%clk 0:00:02]}  f4 {[%clk 0:00:05]} 53. Ke2 {[%clk 0:00:02]}  f3+ {[%clk 0:00:06]} 54. Kf1 {[%clk 0:00:03]}  Rc2 {[%clk 0:00:06]} 55. Bf6 {[%clk 0:00:03]}  Ke3 {[%clk 0:00:06]} 56. Bg5+ {[%clk 0:00:03]}  Ke4 {[%clk 0:00:06]} 57. Kg1 {[%clk 0:00:03]}  Kf5 {[%clk 0:00:06]} 58. Kf1 {[%clk 0:00:04]}  Kg4 {[%clk 0:00:07]} 59. Kg1 {[%clk 0:00:04]}  Rg2+ {[%clk 0:00:07]} 60. Kf1 {[%clk 0:00:04]}  Rh2 {[%clk 0:00:07]} 61. Be7 {[%clk 0:00:04]}  Rxh4 {[%clk 0:00:08]} 62. Kg1 {[%clk 0:00:04]}  Rh3 {[%clk 0:00:08]} 63. Bd6 {[%clk 0:00:05]}  Rg3+ {[%clk 0:00:08]} 64. Bxg3 {[%clk 0:00:04]}  Kxg3 {[%clk 0:00:09]} 65. Kh1 {[%clk 0:00:04]}  Kh3 {[%clk 0:00:09]} 66. Kg1 {[%clk 0:00:05]}  Kg3 {[%clk 0:00:09]} 67. Kh1 {[%clk 0:00:05]}  Kf2 {[%clk 0:00:10]} 68. Kh2 {[%clk 0:00:04]}  Ke2 {[%clk 0:00:11]} 0-1


[Site "https://www.chess.com"]

[Event "Titled Tuesday Blitz April 25 Early 2023"]
[White "Omariev, Maksim"]
[Black "Yelisieiev, Yevhenii"]
[WhiteFideId "4193423"]
[BlackFideId "14139642"]
[WhiteElo "2421"]
[BlackElo "2425"]
[Result "1-0"]
[Round "10"]
[TimeControl "180+2"]
[Date "2023.04.25"]
[WhiteClock "0:00:04"]
[BlackClock "0:00:01"]

1. g4 {[%clk 0:03:00]}  d6 {[%clk 0:02:55]} 2. Bg2 {[%clk 0:03:01]}  c6 {[%clk 0:02:54]} 3. h3 {[%clk 0:03:00]}  e5 {[%clk 0:02:54]} 4. d4 {[%clk 0:03:00]}  Be7 {[%clk 0:02:50]} 5. Nc3 {[%clk 0:02:58]}  Nf6 {[%clk 0:02:43]} 6. dxe5 {[%clk 0:02:49]}  dxe5 {[%clk 0:02:43]} 7. Qxd8+ {[%clk 0:02:50]}  Bxd8 {[%clk 0:02:43]} 8. Nf3 {[%clk 0:02:51]}  Nbd7 {[%clk 0:02:42]} 9. Bg5 {[%clk 0:02:50]}  Ba5 {[%clk 0:02:34]} 10. Bd2 {[%clk 0:02:50]}  O-O {[%clk 0:02:29]} 11. O-O-O {[%clk 0:02:48]}  Re8 {[%clk 0:02:19]} 12. Ng5 {[%clk 0:02:47]}  Nc5 {[%clk 0:01:57]} 13. Be3 {[%clk 0:01:36]}  Ne6 {[%clk 0:01:15]} 14. Nge4 {[%clk 0:01:35]}  Nxe4 {[%clk 0:01:14]} 15. Nxe4 {[%clk 0:01:35]}  Nd4 {[%clk 0:00:57]} 16. Bxd4 {[%clk 0:01:21]}  exd4 {[%clk 0:00:57]} 17. Rxd4 {[%clk 0:01:22]}  Bb6 {[%clk 0:00:55]} 18. Rd2 {[%clk 0:00:58]}  Be6 {[%clk 0:00:44]} 19. Nd6 {[%clk 0:00:25]}  Re7 {[%clk 0:00:42]} 20. e3 {[%clk 0:00:23]}  Rd8 {[%clk 0:00:27]} 21. a3 {[%clk 0:00:08]}  Red7 {[%clk 0:00:25]} 22. Rhd1 {[%clk 0:00:09]}  Kf8 {[%clk 0:00:18]} 23. Nxb7 {[%clk 0:00:05]}  Rxd2 {[%clk 0:00:11]} 24. Rxd2 {[%clk 0:00:06]}  Rxd2 {[%clk 0:00:11]} 25. Kxd2 {[%clk 0:00:07]}  Ke7 {[%clk 0:00:07]} 26. Bxc6 {[%clk 0:00:06]}  h5 {[%clk 0:00:07]} 27. b4 {[%clk 0:00:06]}  hxg4 {[%clk 0:00:07]} 28. hxg4 {[%clk 0:00:07]}  Bxg4 {[%clk 0:00:07]} 29. c4 {[%clk 0:00:07]}  Be6 {[%clk 0:00:07]} 30. c5 {[%clk 0:00:07]}  Bc7 {[%clk 0:00:07]} 31. Bf3 {[%clk 0:00:07]}  g5 {[%clk 0:00:06]} 32. a4 {[%clk 0:00:07]}  f5 {[%clk 0:00:06]} 33. a5 {[%clk 0:00:06]}  g4 {[%clk 0:00:06]} 34. Be2 {[%clk 0:00:06]}  Bd5 {[%clk 0:00:06]} 35. a6 {[%clk 0:00:06]}  f4 {[%clk 0:00:05]} 36. exf4 {[%clk 0:00:05]}  Bxf4+ {[%clk 0:00:05]} 37. Ke1 {[%clk 0:00:05]}  g3 {[%clk 0:00:04]} 38. fxg3 {[%clk 0:00:04]}  Bxg3+ {[%clk 0:00:05]} 39. Kd2 {[%clk 0:00:05]}  Be5 {[%clk 0:00:05]} 40. b5 {[%clk 0:00:05]}  Kd7 {[%clk 0:00:06]} 41. Bd3 {[%clk 0:00:04]}  Kc7 {[%clk 0:00:06]} 42. Nd6 {[%clk 0:00:03]}  Bd4 {[%clk 0:00:05]} 43. b6+ {[%clk 0:00:03]}  axb6 {[%clk 0:00:05]} 44. Nb5+ {[%clk 0:00:03]}  Kc6 {[%clk 0:00:04]} 45. Nxd4+ {[%clk 0:00:04]}  Kxc5 {[%clk 0:00:03]} 46. Nc2 {[%clk 0:00:04]}  b5 {[%clk 0:00:03]} 47. Na3 {[%clk 0:00:04]}  b4 {[%clk 0:00:03]} 48. Nc2 {[%clk 0:00:04]}  b3 {[%clk 0:00:03]} 49. Ne3 {[%clk 0:00:05]}  Ba8 {[%clk 0:00:02]} 50. Kc3 {[%clk 0:00:05]}  b2 {[%clk 0:00:01]} 51. Nd1 {[%clk 0:00:04]} 1-0


[Site "https://www.chess.com"]

[Event "Titled Tuesday Blitz April 25 Early 2023"]
[White "Harriott, Tyrell"]
[Black "Ronka, Erik"]
[WhiteFideId "2086484"]
[BlackFideId "505080"]
[WhiteElo "2107"]
[BlackElo "2264"]
[Result "0-1"]
[Round "10"]
[TimeControl "180+2"]
[Date "2023.04.25"]
[WhiteClock "0:00:01"]
[BlackClock "0:00:18"]

1. d4 {[%clk 0:03:00]}  b5 {[%clk 0:02:58]} 2. e3 {[%clk 0:02:58]}  Bb7 {[%clk 0:02:57]} 3. f4 {[%clk 0:02:58]}  a6 {[%clk 0:02:52]} 4. Nf3 {[%clk 0:02:58]}  h6 {[%clk 0:02:48]} 5. Bd3 {[%clk 0:02:56]}  e6 {[%clk 0:02:46]} 6. O-O {[%clk 0:02:55]}  Nf6 {[%clk 0:02:42]} 7. Nbd2 {[%clk 0:02:54]}  c5 {[%clk 0:02:42]} 8. c3 {[%clk 0:02:54]}  d6 {[%clk 0:02:39]} 9. a3 {[%clk 0:02:48]}  Nbd7 {[%clk 0:02:38]} 10. e4 {[%clk 0:02:47]}  Qb6 {[%clk 0:02:29]} 11. Kh1 {[%clk 0:02:42]}  O-O-O {[%clk 0:02:21]} 12. a4 {[%clk 0:02:33]}  c4 {[%clk 0:02:03]} 13. Bc2 {[%clk 0:02:29]}  Be7 {[%clk 0:01:57]} 14. Qe2 {[%clk 0:02:18]}  Rdg8 {[%clk 0:01:52]} 15. b3 {[%clk 0:02:11]}  d5 {[%clk 0:01:52]} 16. e5 {[%clk 0:02:06]}  Ne8 {[%clk 0:01:50]} 17. axb5 {[%clk 0:01:54]}  axb5 {[%clk 0:01:49]} 18. bxc4 {[%clk 0:01:54]}  dxc4 {[%clk 0:01:46]} 19. Be4 {[%clk 0:01:46]}  Nc7 {[%clk 0:01:41]} 20. Ba3 {[%clk 0:01:37]}  Bxa3 {[%clk 0:01:25]} 21. Rxa3 {[%clk 0:01:36]}  Nd5 {[%clk 0:01:26]} 22. Rfa1 {[%clk 0:01:21]}  g5 {[%clk 0:01:24]} 23. f5 {[%clk 0:01:06]}  Kc7 {[%clk 0:01:21]} 24. Ra7 {[%clk 0:00:58]}  Ra8 {[%clk 0:01:14]} 25. Rxa8 {[%clk 0:00:53]}  Rxa8 {[%clk 0:01:15]} 26. Rxa8 {[%clk 0:00:53]}  Bxa8 {[%clk 0:01:16]} 27. Bxd5 {[%clk 0:00:33]}  Bxd5 {[%clk 0:01:15]} 28. fxe6 {[%clk 0:00:33]}  fxe6 {[%clk 0:01:15]} 29. Ne4 {[%clk 0:00:33]}  b4 {[%clk 0:01:01]} 30. cxb4 {[%clk 0:00:21]}  Qxb4 {[%clk 0:01:02]} 31. h3 {[%clk 0:00:16]}  Qb1+ {[%clk 0:01:00]} 32. Kh2 {[%clk 0:00:16]}  Qxe4 {[%clk 0:00:59]} 33. Qb2 {[%clk 0:00:14]}  Qf4+ {[%clk 0:00:58]} 34. Kg1 {[%clk 0:00:13]}  Bxf3 {[%clk 0:00:57]} 35. gxf3 {[%clk 0:00:14]}  Qg3+ {[%clk 0:00:57]} 36. Kh1 {[%clk 0:00:14]}  Qxf3+ {[%clk 0:00:57]} 37. Kg1 {[%clk 0:00:14]}  Qg3+ {[%clk 0:00:57]} 38. Kh1 {[%clk 0:00:13]}  Qxh3+ {[%clk 0:00:57]} 39. Kg1 {[%clk 0:00:14]}  Qg3+ {[%clk 0:00:57]} 40. Kh1 {[%clk 0:00:14]}  Qb3 {[%clk 0:00:52]} 41. Qa1 {[%clk 0:00:13]}  Kb7 {[%clk 0:00:42]} 42. Kg2 {[%clk 0:00:11]}  c3 {[%clk 0:00:40]} 43. Qa5 {[%clk 0:00:06]}  c2 {[%clk 0:00:36]} 44. Qd8 {[%clk 0:00:06]}  c1=Q {[%clk 0:00:34]} 45. Qxd7+ {[%clk 0:00:06]}  Qc7 {[%clk 0:00:34]} 46. Qe8 {[%clk 0:00:03]}  Qd5+ {[%clk 0:00:34]} 47. Kh2 {[%clk 0:00:02]}  Qc2+ {[%clk 0:00:23]} 48. Kh3 {[%clk 0:00:01]}  Qf5+ {[%clk 0:00:18]} 0-1


[Site "https://www.chess.com"]

[Event "Titled Tuesday Blitz April 25 Early 2023"]
[White "Belov, Alexei"]
[Black "Koutsin, Sergey"]
[WhiteFideId "4128206"]
[BlackFideId "14101483"]
[WhiteElo "2505"]
[BlackElo "2381"]
[Result "1-0"]
[Round "10"]
[TimeControl "180+2"]
[Date "2023.04.25"]
[WhiteClock "0:01:49"]
[BlackClock "0:00:15"]

1. e4 {[%clk 0:03:00]}  e6 {[%clk 0:03:00]} 2. d4 {[%clk 0:03:00]}  d5 {[%clk 0:03:00]} 3. Nd2 {[%clk 0:03:01]}  c5 {[%clk 0:02:59]} 4. Ngf3 {[%clk 0:03:00]}  Nc6 {[%clk 0:02:58]} 5. exd5 {[%clk 0:03:00]}  exd5 {[%clk 0:02:58]} 6. Bb5 {[%clk 0:03:00]}  Bd6 {[%clk 0:02:55]} 7. O-O {[%clk 0:02:58]}  Ne7 {[%clk 0:02:56]} 8. dxc5 {[%clk 0:02:58]}  Bxc5 {[%clk 0:02:55]} 9. Nb3 {[%clk 0:02:59]}  Bb6 {[%clk 0:02:50]} 10. Nfd4 {[%clk 0:02:59]}  O-O {[%clk 0:02:49]} 11. c3 {[%clk 0:02:59]}  a6 {[%clk 0:02:43]} 12. Bd3 {[%clk 0:02:56]}  Qd6 {[%clk 0:02:41]} 13. Re1 {[%clk 0:02:53]}  Bc7 {[%clk 0:02:34]} 14. g3 {[%clk 0:02:48]}  Ng6 {[%clk 0:02:28]} 15. Qh5 {[%clk 0:02:36]}  Nce5 {[%clk 0:01:20]} 16. Bf4 {[%clk 0:02:35]}  f6 {[%clk 0:01:09]} 17. Nf5 {[%clk 0:02:17]}  Qd7 {[%clk 0:00:30]} 18. Nc5 {[%clk 0:01:57]}  Qc6 {[%clk 0:00:20]} 19. Bxe5 {[%clk 0:01:56]}  fxe5 {[%clk 0:00:19]} 20. Ne7+ {[%clk 0:01:49]}  Nxe7 {[%clk 0:00:17]} 21. Bxh7+ {[%clk 0:01:49]}  Kh8 {[%clk 0:00:14]} 22. Bg6+ {[%clk 0:01:49]}  Kg8 {[%clk 0:00:15]} 23. Qh7# {[%clk 0:01:49]} 1-0


[Site "https://www.chess.com"]

[Event "Titled Tuesday Blitz April 25 Early 2023"]
[White "Topalov, Aleksandar"]
[Black "Sadovsky, Artem"]
[WhiteFideId "925659"]
[BlackFideId "4155840"]
[WhiteElo "2151"]
[BlackElo "2314"]
[Result "0-1"]
[Round "10"]
[TimeControl "180+2"]
[Date "2023.04.25"]
[WhiteClock "0:00:19"]
[BlackClock "0:00:07"]

1. b3 {[%clk 0:03:00]}  Nf6 {[%clk 0:02:54]} 2. Bb2 {[%clk 0:03:00]}  e6 {[%clk 0:02:48]} 3. Nf3 {[%clk 0:03:00]}  Be7 {[%clk 0:02:39]} 4. e3 {[%clk 0:02:57]}  O-O {[%clk 0:02:27]} 5. d4 {[%clk 0:02:57]}  c5 {[%clk 0:02:20]} 6. Nbd2 {[%clk 0:02:57]}  Nc6 {[%clk 0:02:11]} 7. Bd3 {[%clk 0:02:56]}  b6 {[%clk 0:02:06]} 8. a3 {[%clk 0:02:56]}  Bb7 {[%clk 0:02:01]} 9. O-O {[%clk 0:02:56]}  Rc8 {[%clk 0:01:57]} 10. Qe2 {[%clk 0:02:56]}  d6 {[%clk 0:01:49]} 11. c4 {[%clk 0:02:53]}  Qc7 {[%clk 0:01:47]} 12. Rac1 {[%clk 0:02:51]}  e5 {[%clk 0:01:36]} 13. dxe5 {[%clk 0:02:50]}  Nxe5 {[%clk 0:01:37]} 14. Bb1 {[%clk 0:02:39]}  Nxf3+ {[%clk 0:01:31]} 15. Nxf3 {[%clk 0:02:38]}  d5 {[%clk 0:01:32]} 16. Ng5 {[%clk 0:01:58]}  h6 {[%clk 0:00:53]} 17. Qc2 {[%clk 0:01:49]}  hxg5 {[%clk 0:00:54]} 18. Bxf6 {[%clk 0:01:49]}  g6 {[%clk 0:00:50]} 19. Bb2 {[%clk 0:01:46]}  f5 {[%clk 0:00:39]} 20. Rfd1 {[%clk 0:01:43]}  Rcd8 {[%clk 0:00:31]} 21. cxd5 {[%clk 0:01:35]}  Bxd5 {[%clk 0:00:29]} 22. b4 {[%clk 0:01:35]}  c4 {[%clk 0:00:26]} 23. b5 {[%clk 0:01:25]}  Be4 {[%clk 0:00:11]} 24. Qc3 {[%clk 0:01:19]}  Bf6 {[%clk 0:00:11]} 25. Qb4 {[%clk 0:01:08]}  c3 {[%clk 0:00:09]} 26. Ba1 {[%clk 0:00:59]}  Rxd1+ {[%clk 0:00:08]} 27. Rxd1 {[%clk 0:00:59]}  c2 {[%clk 0:00:09]} 28. Qb3+ {[%clk 0:00:46]}  Kh7 {[%clk 0:00:08]} 29. Bxc2 {[%clk 0:00:42]}  Bxc2 {[%clk 0:00:07]} 30. Rc1 {[%clk 0:00:34]}  Bxa1 {[%clk 0:00:06]} 31. Rxc2 {[%clk 0:00:30]}  Qg7 {[%clk 0:00:07]} 32. Qe6 {[%clk 0:00:23]}  Rf7 {[%clk 0:00:07]} 33. Qe5 {[%clk 0:00:19]}  Bxe5 {[%clk 0:00:07]} 0-1


[Site "https://www.chess.com"]

[Event "Titled Tuesday Blitz April 25 Early 2023"]
[White "Camacho Collados, Jose"]
[Black "Allahverdiyeva, Ayan"]
[WhiteFideId "2265427"]
[BlackFideId "13412590"]
[WhiteElo "2198"]
[BlackElo "1980"]
[Result "1-0"]
[Round "10"]
[TimeControl "180+2"]
[Date "2023.04.25"]
[WhiteClock "0:00:40"]
[BlackClock "0:00:02"]

1. e4 {[%clk 0:03:00]}  c5 {[%clk 0:02:43]} 2. c3 {[%clk 0:03:00]}  Nf6 {[%clk 0:02:42]} 3. e5 {[%clk 0:03:00]}  Nd5 {[%clk 0:02:42]} 4. Bc4 {[%clk 0:02:58]}  Nb6 {[%clk 0:02:42]} 5. Bb3 {[%clk 0:02:57]}  c4 {[%clk 0:02:41]} 6. Bc2 {[%clk 0:02:57]}  d6 {[%clk 0:02:41]} 7. exd6 {[%clk 0:02:47]}  Qxd6 {[%clk 0:02:38]} 8. d4 {[%clk 0:02:48]}  cxd3 {[%clk 0:02:36]} 9. Qxd3 {[%clk 0:02:48]}  Qxd3 {[%clk 0:02:35]} 10. Bxd3 {[%clk 0:02:49]}  Nc6 {[%clk 0:02:35]} 11. Nf3 {[%clk 0:02:46]}  Bg4 {[%clk 0:02:25]} 12. Bf4 {[%clk 0:02:39]}  O-O-O {[%clk 0:02:23]} 13. Be2 {[%clk 0:02:36]}  Bxf3 {[%clk 0:02:19]} 14. Bxf3 {[%clk 0:02:35]}  e5 {[%clk 0:02:19]} 15. Bg3 {[%clk 0:02:26]}  f5 {[%clk 0:02:19]} 16. Bxc6 {[%clk 0:02:22]}  bxc6 {[%clk 0:02:16]} 17. Bxe5 {[%clk 0:02:22]}  Re8 {[%clk 0:02:16]} 18. f4 {[%clk 0:02:23]}  Nc4 {[%clk 0:02:14]} 19. O-O {[%clk 0:02:19]}  Nxe5 {[%clk 0:02:09]} 20. fxe5 {[%clk 0:02:17]}  Rxe5 {[%clk 0:02:01]} 21. b4 {[%clk 0:02:16]}  c5 {[%clk 0:02:01]} 22. a3 {[%clk 0:02:14]}  a5 {[%clk 0:01:57]} 23. Nd2 {[%clk 0:02:12]}  cxb4 {[%clk 0:01:38]} 24. axb4 {[%clk 0:02:11]}  axb4 {[%clk 0:01:31]} 25. cxb4 {[%clk 0:02:03]}  Rb5 {[%clk 0:00:54]} 26. Ra8+ {[%clk 0:01:24]}  Kb7 {[%clk 0:00:53]} 27. Rfa1 {[%clk 0:01:16]}  Bc5+ {[%clk 0:00:51]} 28. bxc5 {[%clk 0:01:12]}  Rxa8 {[%clk 0:00:48]} 29. c6+ {[%clk 0:01:12]}  Kxc6 {[%clk 0:00:39]} 30. Rxa8 {[%clk 0:01:12]}  Rb2 {[%clk 0:00:24]} 31. Nf3 {[%clk 0:01:08]}  Rb7 {[%clk 0:00:13]} 32. Kf2 {[%clk 0:01:06]}  Kd5 {[%clk 0:00:13]} 33. Re8 {[%clk 0:01:04]}  g6 {[%clk 0:00:11]} 34. h4 {[%clk 0:01:03]}  Kd6 {[%clk 0:00:09]} 35. Kg3 {[%clk 0:01:02]}  Ra7 {[%clk 0:00:09]} 36. Re2 {[%clk 0:00:51]}  Rb7 {[%clk 0:00:08]} 37. Kf4 {[%clk 0:00:51]}  Rb4+ {[%clk 0:00:08]} 38. Kg5 {[%clk 0:00:51]}  Rb7 {[%clk 0:00:06]} 39. Kf6 {[%clk 0:00:49]}  Kd5 {[%clk 0:00:05]} 40. Ng5 {[%clk 0:00:42]}  h6 {[%clk 0:00:01]} 41. Nf3 {[%clk 0:00:41]}  g5 {[%clk 0:00:01]} 42. hxg5 {[%clk 0:00:41]}  hxg5 {[%clk 0:00:02]} 43. Kxg5 {[%clk 0:00:40]} 1-0


[Site "https://www.chess.com"]

[Event "Titled Tuesday Blitz April 25 Early 2023"]
[White "Ordekalog"]
[Black "Pandey Srishti"]
[BlackFideId "35093290"]
[WhiteElo "2477"]
[BlackElo "2083"]
[Result "1-0"]
[Round "10"]
[TimeControl "180+2"]
[Date "2023.04.25"]
[WhiteClock "0:02:01"]
[BlackClock "0:02:16"]

1. e4 {[%clk 0:03:00]}  e5 {[%clk 0:02:57]} 2. Nf3 {[%clk 0:03:00]}  Nc6 {[%clk 0:02:57]} 3. Bb5 {[%clk 0:02:57]}  a6 {[%clk 0:02:56]} 4. Bxc6 {[%clk 0:02:57]}  dxc6 {[%clk 0:02:55]} 5. O-O {[%clk 0:02:58]}  f6 {[%clk 0:02:53]} 6. d4 {[%clk 0:02:57]}  exd4 {[%clk 0:02:53]} 7. Nxd4 {[%clk 0:02:58]}  Bc5 {[%clk 0:02:51]} 8. Qh5+ {[%clk 0:02:56]}  g6 {[%clk 0:02:45]} 9. Qxc5 {[%clk 0:02:56]}  Ne7 {[%clk 0:02:45]} 10. Bh6 {[%clk 0:02:54]}  b6 {[%clk 0:02:42]} 11. Qc4 {[%clk 0:02:51]}  Qd6 {[%clk 0:02:42]} 12. Nc3 {[%clk 0:02:46]}  c5 {[%clk 0:02:41]} 13. Nf3 {[%clk 0:02:40]}  Be6 {[%clk 0:02:41]} 14. Qd3 {[%clk 0:02:35]}  Qc6 {[%clk 0:02:38]} 15. Bg7 {[%clk 0:02:25]}  Rg8 {[%clk 0:02:35]} 16. Bxf6 {[%clk 0:02:24]}  Rd8 {[%clk 0:02:34]} 17. Qxa6 {[%clk 0:02:17]}  Bg4 {[%clk 0:02:32]} 18. Bxe7 {[%clk 0:02:12]}  Kxe7 {[%clk 0:02:23]} 19. Ne5 {[%clk 0:02:11]}  Qe6 {[%clk 0:02:23]} 20. Nxg4 {[%clk 0:02:10]}  Qxg4 {[%clk 0:02:24]} 21. Qb7 {[%clk 0:02:06]}  Rge8 {[%clk 0:02:20]} 22. Qxc7+ {[%clk 0:02:04]}  Rd7 {[%clk 0:02:20]} 23. Qxb6 {[%clk 0:02:02]}  Kf7 {[%clk 0:02:16]} 24. Qxc5 {[%clk 0:02:01]} 1-0


[Site "https://www.chess.com"]